[Event "*** Titled Tuesday Blitz"]
[Site "Chess.com"]
[Date "2020.05.05"]
[Round "9"]
[White "crossingthestreet"]
[Black "Marty435"]
[Result "1-0"]
[WhiteElo "2301"]
[BlackElo "2497"]
[TimeControl "180+1"]
[EndTime "11:48:09 PDT"]
[Termination "crossingthestreet won by checkmate"]

1. c4 {[%clk 0:03:00.9]} 1... Nf6 {[%clk 0:02:58.8]} 2. Nc3 {[%clk 0:02:59.5]}
2... g6 {[%clk 0:02:57.2]} 3. e4 {[%clk 0:02:58.7]} 3... d6 {[%clk 0:02:57.5]}
4. d4 {[%clk 0:02:58.7]} 4... Bg7 {[%clk 0:02:57.8]} 5. Be2 {[%clk 0:02:59.1]}
5... O-O {[%clk 0:02:58.1]} 6. Be3 {[%clk 0:02:59]} 6... c6 {[%clk 0:02:52]} 7.
g4 {[%clk 0:02:57.8]} 7... a6 {[%clk 0:02:46.9]} 8. g5 {[%clk 0:02:41.5]} 8...
Nfd7 {[%clk 0:02:46.3]} 9. d5 {[%clk 0:02:39.2]} 9... c5 {[%clk 0:02:36.1]} 10.
h4 {[%clk 0:02:36.2]} 10... Qa5 {[%clk 0:02:34.7]} 11. Rc1 {[%clk 0:02:25.7]}
11... b5 {[%clk 0:02:34.6]} 12. Kf1 {[%clk 0:02:15.4]} 12... Nb6 {[%clk
0:02:27.3]} 13. cxb5 {[%clk 0:01:46.9]} 13... axb5 {[%clk 0:02:26.9]} 14. Nxb5
{[%clk 0:01:47.2]} 14... Qxa2 {[%clk 0:02:20.8]} 15. Bd2 {[%clk 0:01:24]} 15...
Qxb2 {[%clk 0:02:11.2]} 16. Bc3 {[%clk 0:01:23.6]} 16... Bxc3 {[%clk 0:02:08.9]}
17. Nxc3 {[%clk 0:01:24.5]} 17... Ba6 {[%clk 0:02:08.2]} 18. h5 {[%clk
0:01:23.8]} 18... Bxe2+ {[%clk 0:02:07.9]} 19. Ngxe2 {[%clk 0:01:24.7]} 19...
N8d7 {[%clk 0:02:00.6]} 20. Nf4 {[%clk 0:01:18.1]} 20... Ra3 {[%clk 0:01:53.5]}
21. Nce2 {[%clk 0:01:05]} 21... Rfa8 {[%clk 0:01:50.7]} 22. hxg6 {[%clk
0:01:01]} 22... hxg6 {[%clk 0:01:50.3]} 23. Kg2 {[%clk 0:00:54.3]} 23... Ne5
{[%clk 0:01:42.5]} 24. Rb1 {[%clk 0:00:48.5]} 24... Qa2 {[%clk 0:01:22.8]} 25.
Rxb6 {[%clk 0:00:47.5]} 25... Qc4 {[%clk 0:01:21.2]} 26. Qb1 {[%clk 0:00:40.5]}
26... Kg7 {[%clk 0:01:10.8]} 27. Ng3 {[%clk 0:00:26]} 27... Rxg3+ {[%clk
0:00:33.2]} 28. fxg3 {[%clk 0:00:11.5]} 28... Ra2+ {[%clk 0:00:32.8]} 29. Rb2
{[%clk 0:00:11.4]} 29... Rxb2+ {[%clk 0:00:20.6]} 30. Qxb2 {[%clk 0:00:12.3]}
30... Qxe4+ {[%clk 0:00:21]} 31. Kg1 {[%clk 0:00:12.8]} 31... Qe3+ {[%clk
0:00:19.2]} 32. Qf2 {[%clk 0:00:11.7]} 32... Qe4 {[%clk 0:00:13.3]} 33. Rh4
{[%clk 0:00:09.7]} 33... Nf3+ {[%clk 0:00:13.4]} 34. Kf1 {[%clk 0:00:08.7]}
34... Qb1+ {[%clk 0:00:10]} 35. Kg2 {[%clk 0:00:08.7]} 35... Nxh4+ {[%clk
0:00:08.2]} 36. gxh4 {[%clk 0:00:09.6]} 36... Qe4+ {[%clk 0:00:05]} 37. Qf3
{[%clk 0:00:09.8]} 37... Qc2+ {[%clk 0:00:05.4]} 38. Kg3 {[%clk 0:00:09.9]}
38... c4 {[%clk 0:00:05.1]} 39. h5 {[%clk 0:00:10.3]} 39... c3 {[%clk
0:00:04.1]} 40. hxg6 {[%clk 0:00:10.6]} 40... Qd2 {[%clk 0:00:02]} 41. Ne6+
{[%clk 0:00:09.4]} 41... fxe6 {[%clk 0:00:01.7]} 42. Qf7+ {[%clk 0:00:09.2]}
42... Kh8 {[%clk 0:00:02.1]} 43. Qh7# {[%clk 0:00:09.7]} 1-0

[Event "*** Titled Tuesday Blitz"]
[Site "Chess.com"]
[Date "2020.05.05"]
[Round "9"]
[White "Sashadav97"]
[Black "TregubovP"]
[Result "1-0"]
[WhiteElo "2766"]
[BlackElo "2516"]
[TimeControl "180+1"]
[EndTime "11:48:10 PDT"]
[Termination "Sashadav97 won by checkmate"]

1. d4 {[%clk 0:03:00.9]} 1... Nf6 {[%clk 0:02:59.2]} 2. c4 {[%clk 0:03:01]} 2...
e6 {[%clk 0:02:59.4]} 3. Nc3 {[%clk 0:03:01.2]} 3... Bb4 {[%clk 0:02:59.4]} 4.
f3 {[%clk 0:03:01.5]} 4... c5 {[%clk 0:02:56.7]} 5. d5 {[%clk 0:03:01.4]} 5...
O-O {[%clk 0:02:52.6]} 6. e4 {[%clk 0:03:01.1]} 6... d6 {[%clk 0:02:52.5]} 7.
Ne2 {[%clk 0:02:55.2]} 7... b5 {[%clk 0:02:52.5]} 8. Nf4 {[%clk 0:02:54.8]} 8...
Re8 {[%clk 0:02:52.8]} 9. Be2 {[%clk 0:02:19]} 9... bxc4 {[%clk 0:02:37.5]} 10.
dxe6 {[%clk 0:02:00.2]} 10... fxe6 {[%clk 0:02:33.1]} 11. O-O {[%clk 0:01:57.6]}
11... d5 {[%clk 0:02:27.9]} 12. e5 {[%clk 0:01:57.8]} 12... Nc6 {[%clk
0:01:55.5]} 13. exf6 {[%clk 0:01:52.9]} 13... Qxf6 {[%clk 0:01:55.5]} 14. Bd2
{[%clk 0:01:39.5]} 14... Nd4 {[%clk 0:01:38.8]} 15. Kh1 {[%clk 0:01:34.4]} 15...
Bb7 {[%clk 0:01:36.3]} 16. Rc1 {[%clk 0:01:26.6]} 16... Rad8 {[%clk 0:01:35.2]}
17. a3 {[%clk 0:01:14.6]} 17... Bxc3 {[%clk 0:01:34.7]} 18. bxc3 {[%clk
0:01:13.8]} 18... Nf5 {[%clk 0:01:31.6]} 19. Nh3 {[%clk 0:01:10.6]} 19... h6
{[%clk 0:01:30.1]} 20. Qa4 {[%clk 0:01:05.3]} 20... e5 {[%clk 0:01:19.8]} 21.
Nf2 {[%clk 0:01:05.2]} 21... Kh7 {[%clk 0:01:13]} 22. Qxa7 {[%clk 0:01:00.3]}
22... Re7 {[%clk 0:01:11.8]} 23. Qxc5 {[%clk 0:00:59.2]} 23... Rc8 {[%clk
0:01:07]} 24. Qb4 {[%clk 0:00:59.2]} 24... Ba8 {[%clk 0:01:05.6]} 25. Ng4 {[%clk
0:00:53.7]} 25... Qh4 {[%clk 0:01:00.9]} 26. Kg1 {[%clk 0:00:39.5]} 26... d4
{[%clk 0:00:48.5]} 27. cxd4 {[%clk 0:00:33.2]} 27... Nxd4 {[%clk 0:00:37.5]} 28.
Bxc4 {[%clk 0:00:23.5]} 28... Rd8 {[%clk 0:00:31.4]} 29. Be1 {[%clk 0:00:17.7]}
29... Qg5 {[%clk 0:00:30.2]} 30. h4 {[%clk 0:00:18]} 30... Qxc1 {[%clk 0:00:19]}
31. Qxe7 {[%clk 0:00:16.3]} 31... Qxc4 {[%clk 0:00:08.5]} 32. Nf6+ {[%clk
0:00:12.7]} 32... Kg6 {[%clk 0:00:07.3]} 33. h5+ {[%clk 0:00:13.2]} 33... Kf5
{[%clk 0:00:06.8]} 34. g4+ {[%clk 0:00:13.1]} 34... Kf4 {[%clk 0:00:05.4]} 35.
Bd2+ {[%clk 0:00:12.2]} 35... Kg3 {[%clk 0:00:05.5]} 36. Ne4+ {[%clk 0:00:12.6]}
36... Kh3 {[%clk 0:00:04.6]} 37. Nf2+ {[%clk 0:00:12.9]} 37... Kg3 {[%clk
0:00:03.9]} 38. Ne4+ {[%clk 0:00:13.3]} 38... Bxe4 {[%clk 0:00:03.2]} 39. Qxe5+
{[%clk 0:00:12.3]} 39... Kh3 {[%clk 0:00:01.5]} 40. Qh2# {[%clk 0:00:12.4]} 1-0

[Event "*** Titled Tuesday Blitz"]
[Site "Chess.com"]
[Date "2020.05.05"]
[Round "9"]
[White "Natalya_Buksa"]
[Black "Harry_Rakkel"]
[Result "1/2-1/2"]
[WhiteElo "2497"]
[BlackElo "2619"]
[TimeControl "180+1"]
[EndTime "11:48:10 PDT"]
[Termination "Game drawn by agreement"]

1. d4 {[%clk 0:03:00.9]} 1... Nf6 {[%clk 0:02:58.9]} 2. Nc3 {[%clk 0:03:00.3]}
2... d5 {[%clk 0:02:57.4]} 3. Bf4 {[%clk 0:02:59.8]} 3... e6 {[%clk 0:02:55.1]}
4. e3 {[%clk 0:02:59.8]} 4... Bd7 {[%clk 0:02:48.4]} 5. Nf3 {[%clk 0:02:59]}
5... c5 {[%clk 0:02:47.4]} 6. Nb5 {[%clk 0:02:48.2]} 6... Qa5+ {[%clk
0:02:32.4]} 7. Qd2 {[%clk 0:02:48.2]} 7... Qxd2+ {[%clk 0:02:31.7]} 8. Kxd2
{[%clk 0:02:48.3]} 8... Bxb5 {[%clk 0:02:31]} 9. Bxb5+ {[%clk 0:02:47.6]} 9...
Nc6 {[%clk 0:02:30.6]} 10. Ne5 {[%clk 0:02:40.6]} 10... Rc8 {[%clk 0:02:13]} 11.
Nxc6 {[%clk 0:02:37.4]} 11... bxc6 {[%clk 0:02:12.6]} 12. Ba6 {[%clk 0:02:37.9]}
12... Rd8 {[%clk 0:02:13.1]} 13. f3 {[%clk 0:02:37.9]} 13... cxd4 {[%clk
0:02:08.9]} 14. exd4 {[%clk 0:02:37.8]} 14... Kd7 {[%clk 0:02:08.5]} 15. g4
{[%clk 0:02:24.5]} 15... Bd6 {[%clk 0:02:07.5]} 16. Be3 {[%clk 0:02:24.9]} 16...
Rb8 {[%clk 0:02:01.7]} 17. b3 {[%clk 0:02:24.7]} 17... h5 {[%clk 0:01:58.9]} 18.
h3 {[%clk 0:02:18.5]} 18... Ng8 {[%clk 0:01:48.5]} 19. Bd3 {[%clk 0:02:09.5]}
19... Ne7 {[%clk 0:01:47.6]} 20. c4 {[%clk 0:02:08.6]} 20... dxc4 {[%clk
0:01:22]} 21. bxc4 {[%clk 0:01:52.5]} 21... Rb2+ {[%clk 0:01:21.1]} 22. Kc3
{[%clk 0:01:52.9]} 22... Rhb8 {[%clk 0:01:17.5]} 23. Bc2 {[%clk 0:01:05.3]}
23... c5 {[%clk 0:01:02.3]} 24. Rhb1 {[%clk 0:00:59.8]} 24... Rxb1 {[%clk
0:00:43]} 25. Rxb1 {[%clk 0:00:59.2]} 25... Rxb1 {[%clk 0:00:43.4]} 26. Bxb1
{[%clk 0:00:59.5]} 26... hxg4 {[%clk 0:00:41.3]} 27. hxg4 {[%clk 0:00:58.7]}
27... Kc6 {[%clk 0:00:40.9]} 28. Be4+ {[%clk 0:00:52.5]} 28... Kb6 {[%clk
0:00:40.4]} 29. Bf2 {[%clk 0:00:19.7]} 29... f5 {[%clk 0:00:37.5]} 30. Bc2
{[%clk 0:00:16.4]} 30... g6 {[%clk 0:00:32.3]} 31. Be3 {[%clk 0:00:12.2]} 31...
cxd4+ {[%clk 0:00:26]} 32. Bxd4+ {[%clk 0:00:12]} 32... Bc5 {[%clk 0:00:26.6]}
33. Bf6 {[%clk 0:00:11.9]} 33... Nc6 {[%clk 0:00:25.9]} 34. gxf5 {[%clk
0:00:11.1]} 34... gxf5 {[%clk 0:00:25.1]} 35. Ba4 {[%clk 0:00:11.3]} 35... Bf2
{[%clk 0:00:20.5]} 36. Bb5 {[%clk 0:00:10.3]} 36... a6 {[%clk 0:00:18.8]} 37.
Ba4 {[%clk 0:00:09.5]} 37... Kc5 {[%clk 0:00:17.5]} 38. Bxc6 {[%clk 0:00:09.2]}
38... Kxc6 {[%clk 0:00:16.8]} 39. Bd4 {[%clk 0:00:10.1]} 39... Bg3 {[%clk
0:00:16.1]} 40. Kd3 {[%clk 0:00:10.4]} 40... e5 {[%clk 0:00:15.8]} 41. Bc3
{[%clk 0:00:10.7]} 41... Bf4 {[%clk 0:00:15]} 42. Bb4 {[%clk 0:00:10.7]} 42...
Bh2 {[%clk 0:00:14.4]} 43. Be7 {[%clk 0:00:11]} 43... Bf4 {[%clk 0:00:14.1]} 44.
Bf8 {[%clk 0:00:11.3]} 1/2-1/2

[Event "*** Titled Tuesday Blitz"]
[Site "Chess.com"]
[Date "2020.05.05"]
[Round "9"]
[White "LizaSolovyova"]
[Black "Aleksandar-Topalov"]
[Result "0-1"]
[WhiteElo "2531"]
[BlackElo "2409"]
[TimeControl "180+1"]
[EndTime "11:48:10 PDT"]
[Termination "Aleksandar-Topalov won by resignation"]

1. d4 {[%clk 0:03:00.7]} 1... Nf6 {[%clk 0:02:59.9]} 2. Nc3 {[%clk 0:03:00.1]}
2... d5 {[%clk 0:02:59.6]} 3. e4 {[%clk 0:03:00.4]} 3... Nxe4 {[%clk 0:02:58.4]}
4. Nxe4 {[%clk 0:03:00.8]} 4... dxe4 {[%clk 0:02:58.7]} 5. Ne2 {[%clk
0:03:01.7]} 5... Bf5 {[%clk 0:02:58.8]} 6. Ng3 {[%clk 0:03:00.9]} 6... Bg6
{[%clk 0:02:59]} 7. h4 {[%clk 0:03:01.3]} 7... h5 {[%clk 0:02:58.2]} 8. Bf4
{[%clk 0:02:59.9]} 8... Nd7 {[%clk 0:02:54.3]} 9. f3 {[%clk 0:02:53.5]} 9... Nf6
{[%clk 0:02:53.2]} 10. Bc4 {[%clk 0:02:32.5]} 10... c6 {[%clk 0:02:49.9]} 11. c3
{[%clk 0:02:30.1]} 11... e6 {[%clk 0:02:49.2]} 12. Qb3 {[%clk 0:02:25.6]} 12...
Qb6 {[%clk 0:02:41.3]} 13. Bxe6 {[%clk 0:02:09]} 13... Qxb3 {[%clk 0:02:18.5]}
14. Bxb3 {[%clk 0:02:09]} 14... exf3 {[%clk 0:02:18.7]} 15. gxf3 {[%clk
0:02:09.3]} 15... O-O-O {[%clk 0:02:16.4]} 16. Kf2 {[%clk 0:02:08.9]} 16... Bd6
{[%clk 0:02:16.4]} 17. Bg5 {[%clk 0:02:06]} 17... Rhe8 {[%clk 0:02:12.1]} 18.
Rhe1 {[%clk 0:02:05.9]} 18... Kc7 {[%clk 0:02:06.1]} 19. Bxf6 {[%clk 0:01:58.2]}
19... gxf6 {[%clk 0:02:05.9]} 20. Ne4 {[%clk 0:01:58.2]} 20... Be7 {[%clk
0:02:03.1]} 21. Rad1 {[%clk 0:01:55.9]} 21... f5 {[%clk 0:01:51.1]} 22. Ng5
{[%clk 0:01:54.9]} 22... Bxg5 {[%clk 0:01:51.2]} 23. hxg5 {[%clk 0:01:54.8]}
23... f4 {[%clk 0:01:51.7]} 24. Rxe8 {[%clk 0:01:35.2]} 24... Rxe8 {[%clk
0:01:51.1]} 25. Re1 {[%clk 0:01:31.1]} 25... Rxe1 {[%clk 0:01:50.7]} 26. Kxe1
{[%clk 0:01:32]} 26... Kd6 {[%clk 0:01:48.1]} 27. Kf2 {[%clk 0:01:31]} 27... Ke7
{[%clk 0:01:47.2]} 28. Kg2 {[%clk 0:01:30.1]} 28... Bf5 {[%clk 0:01:46.6]} 29.
a3 {[%clk 0:01:20.8]} 29... f6 {[%clk 0:01:46.8]} 30. gxf6+ {[%clk 0:01:20.3]}
30... Kxf6 {[%clk 0:01:47.1]} 31. Bc4 {[%clk 0:01:19.7]} 31... Kg5 {[%clk
0:01:39.7]} 32. Bf7 {[%clk 0:01:19]} 32... Kh4 {[%clk 0:01:39.3]} 33. Be8 {[%clk
0:01:17.4]} 33... Bh3+ {[%clk 0:01:37.3]} 34. Kf2 {[%clk 0:01:17]} 34... Be6
{[%clk 0:01:34.3]} 35. a4 {[%clk 0:01:09.8]} 35... Kg5 {[%clk 0:01:28.9]} 36. a5
{[%clk 0:01:08.8]} 36... Bd5 {[%clk 0:01:28]} 37. Bd7 {[%clk 0:01:05.2]} 37...
Kf6 {[%clk 0:01:23.2]} 38. Bc8 {[%clk 0:01:03.3]} 38... b6 {[%clk 0:01:21.6]}
39. axb6 {[%clk 0:01:03.1]} 39... axb6 {[%clk 0:01:21.1]} 40. Bb7 {[%clk
0:00:53.2]} 40... Ke7 {[%clk 0:01:16.4]} 41. c4 {[%clk 0:00:47.7]} 41... Bxc4
{[%clk 0:01:16]} 42. Bxc6 {[%clk 0:00:47.7]} 42... Kd6 {[%clk 0:01:15.8]} 43.
Be8 {[%clk 0:00:46]} 43... h4 {[%clk 0:01:15.1]} 44. Bg6 {[%clk 0:00:42.9]}
44... Kd5 {[%clk 0:01:13.6]} 45. Kg2 {[%clk 0:00:38.8]} 45... Kxd4 {[%clk
0:01:13.7]} 46. Kh3 {[%clk 0:00:37.5]} 46... Bd5 {[%clk 0:01:10.7]} 47. Kxh4
{[%clk 0:00:37.6]} 47... Bxf3 {[%clk 0:01:09.5]} 48. Kg5 {[%clk 0:00:38.1]}
48... Ke3 {[%clk 0:01:09.9]} 49. Be8 {[%clk 0:00:35.6]} 49... Bd1 {[%clk
0:01:06.4]} 50. Kf6 {[%clk 0:00:34.6]} 50... f3 {[%clk 0:01:06.2]} 51. Bc6
{[%clk 0:00:32.6]} 51... f2 {[%clk 0:01:06.2]} 52. Bg2 {[%clk 0:00:32.6]} 52...
Bf3 {[%clk 0:01:01.4]} 53. Bh3 {[%clk 0:00:31.9]} 53... Be2 {[%clk 0:00:56.3]}
54. Ke5 {[%clk 0:00:28]} 54... Kd2 {[%clk 0:00:51.8]} 55. Kd6 {[%clk 0:00:24.6]}
55... Ke1 {[%clk 0:00:50.9]} 56. b4 {[%clk 0:00:22]} 56... b5 {[%clk 0:00:50.9]}
0-1

[Event "*** Titled Tuesday Blitz"]
[Site "Chess.com"]
[Date "2020.05.05"]
[Round "9"]
[White "KoustavChatterjee1"]
[Black "realmadridtv"]
[Result "1-0"]
[WhiteElo "2602"]
[BlackElo "2394"]
[TimeControl "180+1"]
[EndTime "11:48:12 PDT"]
[Termination "KoustavChatterjee1 won on time"]

1. d4 {[%clk 0:03:00.9]} 1... Nf6 {[%clk 0:02:59.5]} 2. c4 {[%clk 0:03:00.1]}
2... e6 {[%clk 0:02:59.1]} 3. Nc3 {[%clk 0:02:59.6]} 3... Bb4 {[%clk 0:02:58.6]}
4. e3 {[%clk 0:02:59.4]} 4... b6 {[%clk 0:02:55.5]} 5. Ne2 {[%clk 0:02:56.9]}
5... Ne4 {[%clk 0:02:55]} 6. Bd2 {[%clk 0:02:56.1]} 6... Nxd2 {[%clk 0:02:53.1]}
7. Qxd2 {[%clk 0:02:57]} 7... O-O {[%clk 0:02:49.4]} 8. a3 {[%clk 0:02:56.7]}
8... Be7 {[%clk 0:02:49.4]} 9. d5 {[%clk 0:02:45.6]} 9... a5 {[%clk 0:02:29.4]}
10. g3 {[%clk 0:02:39.3]} 10... Bb7 {[%clk 0:02:28.7]} 11. Bg2 {[%clk 0:02:37]}
11... Na6 {[%clk 0:02:29.3]} 12. O-O {[%clk 0:02:30.5]} 12... Nc5 {[%clk
0:02:29.4]} 13. Nd4 {[%clk 0:02:22.2]} 13... e5 {[%clk 0:02:22.7]} 14. Nf5
{[%clk 0:02:21.3]} 14... d6 {[%clk 0:02:05.1]} 15. Qc2 {[%clk 0:02:11.5]} 15...
a4 {[%clk 0:02:02.7]} 16. Rad1 {[%clk 0:02:00.4]} 16... Bf6 {[%clk 0:02:00.8]}
17. Rfe1 {[%clk 0:01:58.5]} 17... g6 {[%clk 0:01:59.5]} 18. Nh6+ {[%clk
0:01:58.1]} 18... Kh8 {[%clk 0:01:59.5]} 19. f4 {[%clk 0:01:55.6]} 19... Bg7
{[%clk 0:01:51.2]} 20. Ng4 {[%clk 0:01:55.2]} 20... exf4 {[%clk 0:01:43.3]} 21.
exf4 {[%clk 0:01:52.6]} 21... Qd7 {[%clk 0:01:40.3]} 22. f5 {[%clk 0:01:39.8]}
22... Qxf5 {[%clk 0:01:15.7]} 23. Qxf5 {[%clk 0:01:38.9]} 23... gxf5 {[%clk
0:01:16.6]} 24. Ne3 {[%clk 0:01:38.8]} 24... Rae8 {[%clk 0:01:14.5]} 25. Nxf5
{[%clk 0:01:38.3]} 25... Rxe1+ {[%clk 0:01:07.6]} 26. Rxe1 {[%clk 0:01:39.2]}
26... Nd3 {[%clk 0:01:07.7]} 27. Re7 {[%clk 0:01:32.2]} 27... Nxb2 {[%clk
0:00:33.4]} 28. Nxg7 {[%clk 0:01:31.7]} 28... Kxg7 {[%clk 0:00:34.3]} 29. Rxc7
{[%clk 0:01:31.6]} 29... Ba6 {[%clk 0:00:34.8]} 30. Bf1 {[%clk 0:01:13.9]} 30...
Re8 {[%clk 0:00:32.4]} 31. Kf2 {[%clk 0:01:13.7]} 31... Rc8 {[%clk 0:00:27.5]}
32. Rxc8 {[%clk 0:01:11.7]} 32... Bxc8 {[%clk 0:00:28.4]} 33. Ne4 {[%clk
0:01:11.6]} 33... Ba6 {[%clk 0:00:14.8]} 34. Nxd6 {[%clk 0:01:05.2]} 34... Kf6
{[%clk 0:00:15.4]} 35. Ke3 {[%clk 0:01:01.8]} 35... Ke7 {[%clk 0:00:15.2]} 36.
Nf5+ {[%clk 0:01:00]} 36... Kf6 {[%clk 0:00:15]} 37. Nd6 {[%clk 0:00:58.8]}
37... Ke7 {[%clk 0:00:14.8]} 38. Nb5 {[%clk 0:00:53.5]} 38... Bxb5 {[%clk
0:00:13.2]} 39. cxb5 {[%clk 0:00:54.4]} 39... Kd6 {[%clk 0:00:10.8]} 40. Kd4
{[%clk 0:00:54.5]} 40... Nd1 {[%clk 0:00:07.5]} 41. Bd3 {[%clk 0:00:54.4]} 41...
h6 {[%clk 0:00:07]} 42. Bc2 {[%clk 0:00:54.5]} 42... Nf2 {[%clk 0:00:06.6]} 43.
Bxa4 {[%clk 0:00:54.3]} 43... Ng4 {[%clk 0:00:06.2]} 44. h4 {[%clk 0:00:54.1]}
44... Ne5 {[%clk 0:00:03.5]} 45. Bd1 {[%clk 0:00:53.1]} 45... f6 {[%clk
0:00:02.5]} 46. a4 {[%clk 0:00:52.7]} 46... Nd7 {[%clk 0:00:02.7]} 47. Bc2
{[%clk 0:00:51.5]} 47... Nc5 {[%clk 0:00:02.3]} 48. g4 {[%clk 0:00:50.9]} 1-0

[Event "*** Titled Tuesday Blitz"]
[Site "Chess.com"]
[Date "2020.05.05"]
[Round "9"]
[White "Oleksandr_Bortnyk"]
[Black "OK97"]
[Result "1-0"]
[WhiteElo "2989"]
[BlackElo "2723"]
[TimeControl "180+1"]
[EndTime "11:48:13 PDT"]
[Termination "Oleksandr_Bortnyk won on time"]

1. e4 {[%clk 0:03:00.9]} 1... c5 {[%clk 0:02:59.5]} 2. Be2 {[%clk 0:02:59.9]}
2... Nc6 {[%clk 0:02:59.3]} 3. d3 {[%clk 0:02:59.8]} 3... g6 {[%clk 0:02:56.9]}
4. f4 {[%clk 0:03:00.1]} 4... Bg7 {[%clk 0:02:57.3]} 5. Nf3 {[%clk 0:03:00.7]}
5... d5 {[%clk 0:02:51.8]} 6. c3 {[%clk 0:02:58.5]} 6... Nh6 {[%clk 0:02:35.4]}
7. O-O {[%clk 0:02:56]} 7... O-O {[%clk 0:02:35.9]} 8. Qe1 {[%clk 0:02:46.4]}
8... f6 {[%clk 0:02:19.4]} 9. Be3 {[%clk 0:02:41]} 9... b6 {[%clk 0:02:19]} 10.
Na3 {[%clk 0:02:37.9]} 10... Bb7 {[%clk 0:02:13]} 11. exd5 {[%clk 0:02:30.6]}
11... Qxd5 {[%clk 0:02:12.8]} 12. d4 {[%clk 0:02:31.5]} 12... Kh8 {[%clk
0:02:06.3]} 13. dxc5 {[%clk 0:02:29.3]} 13... bxc5 {[%clk 0:02:01.9]} 14. Rd1
{[%clk 0:02:29.8]} 14... Qxa2 {[%clk 0:01:37.9]} 15. Bc4 {[%clk 0:01:46]} 15...
Qxb2 {[%clk 0:01:37.9]} 16. Bxc5 {[%clk 0:01:46.6]} 16... Na5 {[%clk 0:00:51.4]}
17. Rb1 {[%clk 0:01:27.2]} 17... Nxc4 {[%clk 0:00:51.6]} 18. Rxb2 {[%clk
0:01:22.6]} 18... Nxb2 {[%clk 0:00:52.5]} 19. Qxe7 {[%clk 0:01:10.2]} 19... Bxf3
{[%clk 0:00:52.4]} 20. Rxf3 {[%clk 0:01:04.5]} 20... Rfe8 {[%clk 0:00:51.8]} 21.
Qb7 {[%clk 0:01:04.2]} 21... Rab8 {[%clk 0:00:49.7]} 22. Qxa7 {[%clk 0:01:03.3]}
22... Nf5 {[%clk 0:00:39.9]} 23. g3 {[%clk 0:00:47.3]} 23... Ra8 {[%clk
0:00:36.7]} 24. Qb7 {[%clk 0:00:45.6]} 24... Rab8 {[%clk 0:00:36.9]} 25. Qa6
{[%clk 0:00:43.3]} 25... Nd1 {[%clk 0:00:30.6]} 26. Nc2 {[%clk 0:00:26.7]} 26...
Rb1 {[%clk 0:00:28]} 27. Rf1 {[%clk 0:00:25.8]} 27... Rb2 {[%clk 0:00:17.7]} 28.
Rxd1 {[%clk 0:00:20.7]} 28... Rxc2 {[%clk 0:00:18.3]} 29. Qb5 {[%clk 0:00:16.5]}
29... Rce2 {[%clk 0:00:16.6]} 30. Kf1 {[%clk 0:00:10.6]} 30... R2e6 {[%clk
0:00:14.3]} 31. c4 {[%clk 0:00:08.8]} 31... h5 {[%clk 0:00:14.6]} 32. Bf2 {[%clk
0:00:08.7]} 32... Kh7 {[%clk 0:00:06]} 33. c5 {[%clk 0:00:08.9]} 33... Rc8
{[%clk 0:00:06.2]} 34. Qb7 {[%clk 0:00:07.1]} 34... Rcc6 {[%clk 0:00:04.3]} 35.
Rd7 {[%clk 0:00:06.6]} 35... Kh6 {[%clk 0:00:04.8]} 36. h3 {[%clk 0:00:06.1]}
36... g5 {[%clk 0:00:05]} 37. g4 {[%clk 0:00:06.3]} 37... hxg4 {[%clk
0:00:04.1]} 38. hxg4 {[%clk 0:00:06.9]} 1-0

[Event "*** Titled Tuesday Blitz"]
[Site "Chess.com"]
[Date "2020.05.05"]
[Round "9"]
[White "Budisavljevic"]
[Black "davidkalashian"]
[Result "0-1"]
[WhiteElo "2406"]
[BlackElo "2548"]
[TimeControl "180+1"]
[EndTime "11:48:13 PDT"]
[Termination "davidkalashian won on time"]

1. d4 {[%clk 0:03:00.9]} 1... Nf6 {[%clk 0:02:58.8]} 2. Nf3 {[%clk 0:03:00.4]}
2... e6 {[%clk 0:02:57.2]} 3. Bf4 {[%clk 0:02:59.1]} 3... b6 {[%clk 0:02:56.6]}
4. e3 {[%clk 0:02:59.1]} 4... Bb7 {[%clk 0:02:57]} 5. Bd3 {[%clk 0:02:59.1]}
5... d5 {[%clk 0:02:56.1]} 6. Ne5 {[%clk 0:02:55.4]} 6... Bd6 {[%clk 0:02:55.3]}
7. Nd2 {[%clk 0:02:51]} 7... O-O {[%clk 0:02:53.4]} 8. g4 {[%clk 0:02:49.2]}
8... Nbd7 {[%clk 0:02:48.9]} 9. h4 {[%clk 0:02:47.4]} 9... Ne4 {[%clk 0:02:46]}
10. g5 {[%clk 0:02:35.8]} 10... f5 {[%clk 0:02:33.6]} 11. f3 {[%clk 0:02:18.9]}
11... Nxd2 {[%clk 0:02:31.5]} 12. Qxd2 {[%clk 0:02:19.1]} 12... Bxe5 {[%clk
0:02:30.6]} 13. Bxe5 {[%clk 0:02:11]} 13... Nxe5 {[%clk 0:02:29.1]} 14. dxe5
{[%clk 0:02:11.9]} 14... c5 {[%clk 0:02:21.8]} 15. f4 {[%clk 0:01:52.6]} 15...
d4 {[%clk 0:02:03.1]} 16. Rh2 {[%clk 0:01:42]} 16... dxe3 {[%clk 0:01:56.5]} 17.
Qxe3 {[%clk 0:01:41.7]} 17... Bd5 {[%clk 0:01:50.6]} 18. O-O-O {[%clk
0:01:30.3]} 18... Qc7 {[%clk 0:01:46.6]} 19. c4 {[%clk 0:01:26.8]} 19... Bc6
{[%clk 0:01:43.4]} 20. Rhd2 {[%clk 0:01:26.8]} 20... Rad8 {[%clk 0:01:40.9]} 21.
Bc2 {[%clk 0:01:25.1]} 21... Rxd2 {[%clk 0:01:40.4]} 22. Qxd2 {[%clk 0:01:25.6]}
22... Qc8 {[%clk 0:01:31.7]} 23. Qd6 {[%clk 0:01:20.3]} 23... Re8 {[%clk
0:01:30.5]} 24. Rd2 {[%clk 0:01:04.7]} 24... a6 {[%clk 0:01:25.6]} 25. Bd1
{[%clk 0:01:02.8]} 25... b5 {[%clk 0:01:21.8]} 26. Bb3 {[%clk 0:00:41.3]} 26...
Be4 {[%clk 0:01:16.1]} 27. Qb6 {[%clk 0:00:22]} 27... Kf7 {[%clk 0:00:49.9]} 28.
Rd6 {[%clk 0:00:19.4]} 28... Re7 {[%clk 0:00:43.3]} 29. Qxa6 {[%clk 0:00:18.2]}
29... Qxa6 {[%clk 0:00:18.7]} 30. Rxa6 {[%clk 0:00:19.1]} 30... b4 {[%clk
0:00:18.7]} 31. Rd6 {[%clk 0:00:17.9]} 31... Ra7 {[%clk 0:00:17.9]} 32. Bc2
{[%clk 0:00:07.9]} 32... Bf3 {[%clk 0:00:16.2]} 33. Bb1 {[%clk 0:00:07.2]} 33...
Be2 {[%clk 0:00:15.8]} 34. b3 {[%clk 0:00:06.5]} 34... Bf3 {[%clk 0:00:15.6]}
35. Kd2 {[%clk 0:00:06.9]} 35... h6 {[%clk 0:00:15.2]} 36. Ke3 {[%clk
0:00:06.5]} 36... Bh1 {[%clk 0:00:15.1]} 37. Rd8 {[%clk 0:00:02.9]} 37... hxg5
{[%clk 0:00:14.3]} 38. hxg5 {[%clk 0:00:03.6]} 38... Kg6 {[%clk 0:00:14.6]} 39.
Rc8 {[%clk 0:00:03.4]} 39... Ra5 {[%clk 0:00:13.3]} 40. Rc6 {[%clk 0:00:02.1]}
40... Bxc6 {[%clk 0:00:11.7]} 0-1